bitfinex-derivatives/quotes_SOLF0:USTF0_20251018
["timestamp","ask_amount","ask_price","bid_price","bid_amount"]
[1760774995568,2.84,186.93,186.84,2.86]
[1760774995772,2.84,186.93,186.84,64.86]
[1760774996172,2.84,186.93,186.86,4.8151]
[1760774997779,2.84,186.91,186.84,7.6756]
[1760774999378,2.84,186.91,186.85,1.81510076]
[1760774999574,2.84,186.95,186.87,4.8149]
[1760774999778,4.17613146,186.94,186.9,1.81510076]
[1760774999975,2.84,186.91,186.88,1.81510076]
[1760775000185,7.653,186.95,186.88,1.81510076]
[1760775000384,8.49135987,186.94,186.88,1.81510076]
[1760775000685,2.84,186.92,186.88,1.81510076]
[1760775000883,2.84,186.95,186.88,1.81510076]
[1760775001082,4.17428968,186.94,186.9,1.81510076]
[1760775001284,2.84,186.94,186.9,4.67510076]
[1760775002275,4.65510076,186.96,186.89,4.8142]
[1760775002479,2.84,186.94,186.88,1.81510076]
[1760775002880,4.17193572,186.93,186.9,1.81510076]
[1760775003076,13.11431374,187.08,186.83,23.22]
[1760775003077,2.84,187.01,186.93,2.86]
[1760775003285,7.01364264,187.0,186.96,4.67510076]
[1760775003485,2.84,187.0,186.98,1.81510076]
[1760775003977,2.84,187.0,186.83,23.22]
[1760775004184,4.17013108,186.99,186.9,2.86]
[1760775004384,2.72,187.0,186.94,1.81510076]
[1760775004785,2.72,186.98,186.94,1.81510076]
[1760775004980,1.81510076,187.03,186.94,1.81510076]
[1760775005284,11.21085626,187.02,186.96,1.81510076]
[1760775005484,4.18190444,187.01,186.96,1.81510076]
[1760775005789,2.72,187.0,186.96,1.81510076]
[1760775005984,2.72,186.99,186.94,1.81510076]
[1760775006684,2.72,186.98,186.94,1.81510076]
[1760775006883,2.72,186.97,186.94,1.81510076]
[1760775007483,2.72,186.98,186.94,1.81510076]
[1760775008486,2.72,186.97,186.94,1.81510076]
[1760775008692,2.72,186.98,186.94,1.81510076]
[1760775009388,2.72,186.96,186.89,1.81510076]
[1760775009586,4.86279612,186.95,186.89,1.81510076]
[1760775009781,2.72,186.96,186.89,1.81510076]
[1760775009990,4.86280945,186.95,186.89,1.81510076]
[1760775010188,2.72,186.96,186.89,1.81510076]
[1760775010384,2.72,186.94,186.89,1.81510076]
[1760775010588,2.72,186.96,186.89,1.81510076]
[1760775010787,2.72,186.94,186.88,1.81510076]
[1760775012092,2.68,186.94,186.86,1.81510076]
[1760775012288,2.68,186.92,186.86,1.81510076]
[1760775013491,2.68,186.88,186.8,2.8]
[1760775013789,2.68,186.86,186.79,1.81510076]
[1760775014086,2.68,186.86,186.81,4.61510076]
[1760775014686,2.68,186.86,186.81,2.8]
[1760775014890,7.4951,186.87,186.81,4.61510076]
[1760775015085,4.86270511,186.86,186.81,1.81510076]
[1760775015291,2.68,186.87,186.77,2.8]
[1760775015292,2.68,186.83,186.79,1.81510076]
[1760775015487,2.68,186.82,186.79,1.81510076]
[1760775015693,1.81510076,186.87,186.79,1.81510076]
[1760775015890,11.71309522,186.86,186.79,1.81510076]
[1760775016097,2.68,186.86,186.79,1.81510076]
[1760775016989,4.86349941,186.85,186.79,1.81510076]
[1760775017194,2.68,186.83,186.79,1.81510076]
[1760775018595,4.8159,186.84,186.79,1.81510076]
[1760775018902,7.54445556,186.83,186.75,1.81510076]
[1760775019103,2.68,186.83,186.75,1.81510076]
[1760775019991,2.68,186.84,186.77,1.81510076]
[1760775020194,2.68,186.84,186.74,2.8]
[1760775020404,6.63120076,186.83,186.76,1.81510076]
[1760775022304,4.8161,186.83,186.76,1.81510076]
[1760775022497,4.8161,186.83,186.76,4.61510076]
[1760775023102,2.68,186.84,186.76,4.61510076]
[1760775023103,2.68,186.84,186.76,9.43260076]
[1760775023301,2.68,186.84,186.78,1.81510076]
[1760775025604,2.68,186.84,186.77,4.8173]
[1760775025605,7.4958,186.84,186.77,4.8173]
[1760775028502,4.8153,186.86,186.8,1.81510076]
[1760775030011,4.8153,186.86,186.8,6.63160076]
[1760775030211,2.68,186.85,186.8,6.63160076]
[1760775030506,2.68,186.84,186.8,6.63160076]
[1760775030706,1.81510076,186.84,186.76,1.81510076]
[1760775031009,4.49510076,186.82,186.75,1.81510076]
[1760775031209,2.68,186.82,186.77,1.81510076]
[1760775031412,2.68,186.82,186.77,4.61510076]
[1760775032200,2.68,186.83,186.77,4.61510076]
[1760775032401,7.4961,186.83,186.76,4.8176]
[1760775032600,1.81510076,186.82,186.74,7.6182]
[1760775032801,4.49510076,186.82,186.74,2.8]
[1760775033812,2.68,186.82,186.75,1.81510076]
[1760775034012,2.68,186.82,186.74,2.8]
[1760775034013,2.68,186.82,186.77,1.81510076]
[1760775034312,2.68,186.83,186.75,4.61510076]
[1760775034510,2.68,186.83,186.76,4.8176]
[1760775035314,2.68,186.83,186.77,4.8174]
[1760775035716,2.68,186.83,186.75,1.81510076]
[1760775036018,2.68,186.83,186.76,2.8]
[1760775036520,2.68,186.83,186.75,1.81510076]
[1760775036521,2.68,186.83,186.78,4.8171]
[1760775036720,2.68,186.83,186.78,7.6171]
[1760775036922,2.68,186.83,186.78,4.8171]
[1760775037123,2.68,186.83,186.79,2.8]
[1760775037925,2.68,186.87,186.78,2.8]
[1760775038223,6.55715687,186.92,186.78,2.8]
[1760775038224,1.81510076,186.84,186.78,2.8]
[1760775038421,2.68,186.83,186.75,4.61510076]
[1760775039414,2.68,186.83,186.75,2.8]
[1760775039415,1.81510076,186.82,186.75,2.8]
[1760775040017,1.81510076,186.8,186.73,2.8]
[1760775040318,1.81510076,186.78,186.7,2.8]
[1760775041426,5.51722798,186.81,186.7,2.8]
[1760775042126,5.51722798,186.81,186.73,2.8]
[1760775042319,2.84,186.77,186.73,2.8]
[1760775043923,2.84,186.77,186.71,4.8189]
[1760775044128,2.84,186.77,186.69,47.58]
[1760775045127,2.84,186.77,186.7,4.8192]
[1760775045323,2.83722798,186.75,186.7,4.8192]
[1760775045529,2.84,186.74,186.7,4.8192]
[1760775045723,2.83722798,186.75,186.7,4.8192]
[1760775045929,2.83722798,186.75,186.71,2.8]
[1760775046227,5.67722798,186.75,186.71,2.8]
[1760775046432,5.67722798,186.75,186.71,7.6189]
[1760775047420,2.84,186.74,186.71,7.6189]
[1760775047620,2.84,186.74,186.71,4.8189]
[1760775048332,2.83722798,186.75,186.71,4.8189]
[1760775048527,2.84,186.74,186.71,4.8189]
[1760775049435,2.83722798,186.75,186.71,4.8189]
[1760775049730,2.84,186.74,186.71,4.8189]
[1760775050226,2.84,186.74,186.64,2.8]
[1760775050833,4.9403534,186.8,186.64,2.8]
[1760775050834,2.84,186.71,186.64,2.8]
[1760775051432,2.84,186.71,186.66,4.8202]
[1760775051633,2.84,186.71,186.66,7.6202]
[1760775052026,5.67722798,186.72,186.66,7.6202]
[1760775056332,4.20202118,186.71,186.66,7.6202]
[1760775056540,10.49612798,186.72,186.66,7.6202]
[1760775056833,2.84,186.7,186.66,7.6202]
[1760775057436,2.84,186.7,186.66,4.8202]
[1760775057637,2.84,186.7,186.67,2.8]
[1760775057835,2.84,186.7,186.66,4.8202]
[1760775058038,2.84,186.69,186.66,4.8202]
[1760775058439,2.84,186.69,186.66,7.6202]
[1760775058638,7.65612798,186.72,186.66,7.6202]
[1760775058940,2.84,186.7,186.66,7.6202]
[1760775060340,4.19848381,186.69,186.66,7.6202]
[1760775060540,2.84,186.71,186.66,7.6202]
[1760775060740,4.19858354,186.7,186.66,7.6202]
[1760775060934,4.19858354,186.69,186.66,7.6202]
[1760775061140,7.65612798,186.72,186.66,7.6202]
[1760775061339,4.19753715,186.71,186.66,7.6202]
[1760775061639,4.19753715,186.7,186.66,7.6202]
[1760775061836,7.03753715,186.69,186.66,7.6202]
[1760775062030,2.84,186.69,186.66,7.6202]
[1760775062433,2.84,186.69,186.66,2.8]
[1760775062843,5.67722798,186.72,186.61,2.8]
[1760775063144,4.19665179,186.71,186.61,2.8]
[1760775063335,5.67722798,186.72,186.61,2.8]
[1760775063537,4.19575465,186.71,186.61,2.8]
[1760775063734,2.84,186.72,186.61,2.8]
[1760775063934,4.19481727,186.71,186.61,2.8]
[1760775064134,2.84,186.72,186.61,2.8]
[1760775064334,4.19481097,186.71,186.61,2.8]
[1760775064534,2.84,186.72,186.65,7.6104]
[1760775064740,4.19556387,186.71,186.65,7.6104]
[1760775064940,2.84,186.72,186.65,7.6104]
[1760775065143,4.20546322,186.71,186.65,7.6104]
[1760775065344,2.84,186.72,186.65,7.6104]
[1760775065544,4.20543476,186.71,186.65,7.6104]
[1760775065744,2.84,186.72,186.65,7.6104]
[1760775065945,2.61,186.7,186.66,4.8202]
[1760775066351,2.61,186.7,186.67,2.79]
[1760775066543,5.44722798,186.75,186.67,2.79]
[1760775066756,4.20328655,186.74,186.67,2.79]
[1760775067050,6.81328655,186.73,186.67,2.79]
[1760775067245,2.61,186.74,186.68,4.8197]
[1760775069245,2.61,186.78,186.66,2.83722798]
[1760775069447,2.61,186.78,186.7,2.79]
[1760775070345,2.61,186.78,186.73,4.8183]
[1760775070545,2.61,186.79,186.73,4.8183]
[1760775070746,2.61,186.77,186.7,2.79]
[1760775070947,15.75614214,186.76,186.67,2.79]
[1760775071148,2.75,186.74,186.67,2.79]
[1760775071452,4.20444527,186.73,186.67,2.79]
[1760775071652,2.83722798,186.74,186.67,2.79]
[1760775071653,2.75,186.71,186.67,2.79]
[1760775072152,2.75,186.73,186.67,2.79]
[1760775072349,4.20319015,186.72,186.67,2.79]
[1760775072552,2.75,186.69,186.66,4.8202]
[1760775072755,2.75,186.69,186.63,2.8]
[1760775073254,2.75,186.69,186.64,4.8207]
[1760775073455,2.75,186.72,186.64,4.8207]
[1760775073654,6.95392411,186.71,186.64,4.8207]
[1760775073952,2.75,186.71,186.64,4.8207]
[1760775074150,2.75,186.71,186.65,4.8204]
[1760775074853,7.5692,186.71,186.65,4.8204]
[1760775075557,4.20667435,186.7,186.63,4.821]
[1760775075857,10.40642798,186.71,186.63,4.821]
[1760775076049,9.02626091,186.7,186.63,4.821]
[1760775076250,4.8194,186.7,186.64,4.8207]
[1760775078058,4.8194,186.7,186.62,7.6213]
[1760775078253,4.8194,186.7,186.62,2.8]
[1760775078955,4.8194,186.7,186.64,4.8207]
[1760775080847,2.75,186.69,186.64,4.8207]
[1760775081048,2.75,186.68,186.64,4.8207]
[1760775081251,5.58722798,186.71,186.64,7.6207]
[1760775081554,6.95671498,186.7,186.66,2.8]
[1760775081861,4.8183,186.74,186.6,2.83722798]
[1760775082054,4.20815633,186.73,186.61,2.8]
[1760775082257,4.20815633,186.72,186.61,2.8]
[1760775082453,4.20815633,186.71,186.61,2.8]
[1760775082650,7.5683,186.74,186.61,2.8]
[1760775082854,8.46374075,186.73,186.61,2.8]
[1760775083062,4.20964752,186.72,186.61,2.8]
[1760775083263,4.20964752,186.71,186.61,2.8]
[1760775083450,4.20964752,186.7,186.61,2.8]
[1760775083659,4.25614102,186.73,186.61,2.8]
[1760775083855,4.21155072,186.72,186.61,2.8]
[1760775084055,4.21155072,186.72,186.6,2.83722798]
[1760775084056,2.75,186.7,186.67,2.8]
[1760775084455,2.75,186.72,186.64,4.8207]
[1760775084658,2.75,186.7,186.64,4.8207]
[1760775084859,2.75,186.68,186.64,7.6207]
[1760775085549,2.75,186.68,186.65,2.8]
[1760775085959,7.5692,186.71,186.65,2.8]
[1760775086155,4.21550434,186.7,186.65,2.8]
[1760775086356,6.96550434,186.69,186.66,2.8]
[1760775086555,2.75,186.69,186.66,2.8]
[1760775086953,2.83722798,186.72,186.66,2.8]
[1760775087159,2.75,186.7,186.66,7.6201]
[1760775087354,4.21628048,186.69,186.66,7.6201]
[1760775087555,2.75,186.7,186.66,7.6201]
[1760775087755,4.21704142,186.69,186.66,7.6201]
[1760775087955,2.75,186.71,186.66,7.6201]
[1760775088163,2.75,186.69,186.66,7.6201]
[1760775088362,4.21703511,186.68,186.66,7.6201]
[1760775088562,2.75,186.69,186.66,7.6201]
[1760775088761,4.21752523,186.68,186.66,7.6201]
[1760775089062,2.75,186.69,186.66,7.6201]
[1760775089263,4.21659274,186.68,186.66,4.8201]
[1760775089460,7.77758138,186.72,186.66,4.8201]
[1760775089661,2.75,186.7,186.66,4.8201]
[1760775089860,2.75,186.68,186.66,4.8201]
[1760775090856,6.96726638,186.67,186.58,44.78]
[1760775091062,2.75,186.7,186.59,2.8]
[1760775091263,4.21668226,186.69,186.59,2.8]
[1760775091564,4.21668226,186.68,186.67,2.8]
[1760775091768,7.6903534,186.74,186.67,2.8]
[1760775091969,13.16811132,186.73,186.67,2.8]
[1760775092166,8.9050349,186.72,186.71,2.8]
[1760775092466,4.21798074,186.72,186.71,2.8]
[1760775093773,4.9403534,186.78,186.72,2.8]
[1760775093967,4.68913742,186.77,186.72,2.8]
[1760775094266,4.9403534,186.8,186.7,2.8]
[1760775094566,8.95392595,186.79,186.7,2.8]
[1760775094768,2.75,186.77,186.7,2.8]
[1760775094969,4.68866198,186.76,186.7,2.8]
[1760775095260,2.83722798,186.8,186.63,47.61722798]
[1760775095261,7.77758138,186.8,186.67,2.8]
[1760775095466,8.95299937,186.79,186.67,2.8]
[1760775095669,8.95299937,186.78,186.67,2.8]
[1760775095972,4.68819753,186.77,186.74,7.6181]
[1760775096270,7.77758138,186.8,186.68,2.8]
[1760775096469,8.9507301,186.79,186.68,2.8]
[1760775096663,8.9507301,186.78,186.75,4.818]
[1760775096864,4.68699877,186.77,186.75,4.818]
[1760775097063,2.75,186.79,186.75,4.818]
[1760775097362,4.68745084,186.78,186.76,4.8176]
[1760775097569,4.68745084,186.77,186.76,4.8176]
[1760775097763,6.55715687,186.83,186.73,2.8]
[1760775097764,7.6903534,186.82,186.73,2.8]
[1760775097963,8.95081796,186.81,186.78,7.6171]
[1760775098172,4.68695101,186.8,186.78,7.6171]
[1760775098373,2.75,186.82,186.78,7.6171]
[1760775098664,7.43426493,186.81,186.78,4.8171]
[1760775098870,2.75,186.78,186.76,4.8176]
[1760775100167,2.83722798,186.79,186.76,4.8176]
[1760775100473,5.58722798,186.79,186.76,4.8176]
[1760775100870,2.75,186.78,186.76,4.8176]
[1760775101472,4.9403534,186.84,186.74,4.8182]
[1760775101473,1.81583243,186.77,186.74,4.8182]
[1760775101677,1.81583243,186.74,186.66,2.73]
[1760775101973,2.64,186.79,186.73,2.73]
[1760775102173,1.81583243,186.76,186.74,2.73]
[1760775102562,1.81583243,186.76,186.73,2.73]
[1760775102766,1.81583243,186.76,186.73,7.5483]
[1760775103366,1.81583243,186.77,186.75,4.818]
[1760775103572,1.81583243,186.78,186.69,1.81583243]
[1760775103773,1.81583243,186.78,186.7,2.73]
[1760775104371,1.81583243,186.78,186.75,4.8178]
[1760775104571,1.81583243,186.78,186.75,7.5478]
[1760775105980,1.81583243,186.78,186.76,2.73]
[1760775106576,2.64,186.77,186.73,4.8184]
[1760775106784,2.64,186.77,186.7,2.73]
[1760775107575,1.81583243,186.78,186.7,2.73]
[1760775108985,1.81583243,186.78,186.76,4.8176]
[1760775111088,4.45583243,186.78,186.74,4.8181]
[1760775111294,4.45583243,186.78,186.74,7.5481]
[1760775111684,4.45583243,186.78,186.75,4.8179]
[1760775111885,1.81583243,186.78,186.75,7.5479]
[1760775112283,1.81583243,186.78,186.76,4.8176]
[1760775112484,1.81583243,186.78,186.76,7.5476]
[1760775113386,1.81583243,186.8,186.77,2.73]
[1760775113590,1.81583243,186.8,186.76,4.8176]
[1760775113591,1.81583243,186.82,186.74,2.73]
[1760775113986,4.9403534,186.87,186.74,2.73]
[1760775113987,2.64,186.79,186.77,4.8173]
[1760775114686,2.64,186.79,186.75,2.73]
[1760775114882,1.81583243,186.78,186.7,2.73]
[1760775115089,1.81583243,186.76,186.72,4.8186]
[1760775115388,1.81583243,186.74,186.7,2.73]
[1760775115589,2.64,186.73,186.7,2.73]
[1760775116688,1.81583243,186.72,186.7,2.73]
[1760775116892,1.81583243,186.74,186.64,112.23642276]
[1760775117084,1.81583243,186.78,186.68,1.81583243]
[1760775117289,1.81583243,186.8,186.71,2.73]
[1760775117483,1.81583243,186.8,186.76,7.5476]
[1760775117686,4.45583243,186.8,186.76,7.5476]
[1760775118681,1.81583243,186.78,186.76,4.8176]
[1760775120491,2.64,186.81,186.71,62.0]
[1760775120492,1.81583243,186.8,186.78,2.73]
[1760775120796,1.81583243,186.82,186.73,2.73]
[1760775121192,1.81583243,186.82,186.78,4.8171]
[1760775121493,1.81583243,186.82,186.79,2.73]
[1760775121696,1.81583243,186.8,186.76,4.8176]
[1760775121896,1.81583243,186.77,186.76,4.8176]
[1760775122398,1.81583243,186.79,186.76,7.5476]
[1760775122691,2.64,186.81,186.77,2.73]
[1760775122894,2.64,186.87,186.75,2.73]
[1760775123194,1.81583243,186.84,186.75,2.73]
[1760775123992,1.81583243,186.86,186.83,2.73]
[1760775124195,1.81583243,186.86,186.78,1.81583243]
[1760775124494,1.81583243,186.86,186.84,4.8156]
[1760775124690,1.81583243,186.86,186.84,7.6656]
[1760775125099,1.81583243,186.88,186.86,4.8151]
[1760775125295,4.9403534,186.93,186.86,4.8151]
[1760775125498,4.8132,186.94,186.8,1.81583243]
[1760775125499,1.81583243,186.9,186.81,2.85]
[1760775125699,1.81583243,186.9,186.82,44.72]
[1760775125894,1.81583243,186.9,186.83,2.85]
[1760775126096,1.81583243,186.9,186.88,4.8145]
[1760775126502,4.43583243,186.92,186.85,2.85]
[1760775127104,1.81583243,186.92,186.82,46.53583243]
[1760775127405,1.81583243,186.96,186.86,1.81583243]
[1760775127601,1.81583243,186.96,186.87,2.85]
[1760775128095,1.81583243,186.96,186.93,4.8132]
[1760775128301,1.81583243,186.98,186.89,2.85]
[1760775128703,1.81583243,186.98,186.94,4.8129]
[1760775128903,1.81583243,186.98,186.9,46.53583243]
[1760775129105,1.81583243,187.02,186.94,4.66583243]
[1760775131012,1.81583243,187.02,186.96,4.8126]
[1760775131208,4.43583243,187.04,186.97,2.59]
[1760775131514,1.81583243,187.06,186.98,1.81583243]
[1760775131817,1.81583243,187.04,186.97,7.4021]
[1760775132115,4.54583243,187.04,186.97,7.4021]
[1760775132312,4.2541826,187.08,186.97,2.59]
[1760775132313,2.73,187.01,186.97,2.59]
[1760775132614,2.73,187.01,186.94,1.81583243]
[1760775132808,2.73,187.01,186.92,44.7]
[1760775132809,1.81583243,187.0,186.93,7.4034]
[1760775133117,1.81583243,187.0,186.93,2.59]
[1760775134011,4.54583243,187.0,186.95,4.8128]
[1760775134214,4.54583243,187.0,186.95,7.4028]
[1760775134414,2.73,186.99,186.95,7.4028]
[1760775136213,1.81583243,187.0,186.96,2.59]
[1760775136518,1.81583243,187.02,186.98,2.59]
[1760775136712,1.81583243,187.02,186.97,4.8123]
[1760775136916,1.81583243,187.02,186.98,2.59]
[1760775137616,1.81583243,187.02,186.99,2.59]
[1760775138311,1.81583243,187.02,186.98,2.59]
[1760775139218,4.54583243,187.02,186.95,7.4028]
[1760775139621,1.81583243,187.0,186.95,7.4028]
[1760775140012,2.73,187.0,186.95,7.4028]
[1760775140311,4.54583243,187.0,186.95,7.4028]
[1760775140512,4.54583243,187.0,186.93,1.81583243]
[1760775140513,2.73,186.99,186.93,6.62913243]
[1760775140712,2.73,187.0,186.93,4.8133]
[1760775140906,1.81583243,187.0,186.94,2.59]
[1760775141112,1.81583243,187.02,186.94,2.59]
[1760775141311,4.92279638,187.01,186.94,2.59]
[1760775141507,2.73,187.01,186.94,2.59]
[1760775141713,2.73,186.99,186.94,2.59]
[1760775142516,2.73,186.99,186.94,9.21873243]
[1760775142819,2.73,186.99,186.95,2.59]
[1760775143019,1.81583243,187.02,186.94,4.8129]
[1760775143219,1.81583243,187.0,186.92,2.59]
[1760775143419,1.81583243,186.98,186.92,2.59]
[1760775143817,2.73,186.97,186.89,9.22023243]
[1760775144322,2.73,186.95,186.89,4.8144]
[1760775145821,1.81583243,186.94,186.89,4.8144]
[1760775146020,2.73,186.93,186.89,4.8144]
[1760775146533,2.73,186.93,186.87,6.63073243]
[1760775146720,2.73,186.93,186.78,9.6341]
[1760775146721,2.73,186.91,186.82,2.59]
[1760775146923,1.81583243,186.9,186.83,1.81583243]
[1760775147324,1.81583243,186.9,186.84,4.8155]
[1760775148731,4.54583243,186.88,186.84,4.8155]
[1760775148929,2.73,186.87,186.84,4.8155]
[1760775149829,1.81583243,186.88,186.84,4.8155]
[1760775150028,4.54583243,186.88,186.84,7.4055]
[1760775150228,1.81583243,186.86,186.82,4.8161]
[1760775150429,1.81583243,186.86,186.82,7.4061]
[1760775150626,1.81583243,186.86,186.83,2.59]
[1760775151220,1.81583243,186.86,186.81,4.8164]
[1760775151428,2.73,186.85,186.81,4.8164]
[1760775151826,1.81583243,186.84,186.8,44.68]
[1760775152026,4.54583243,186.84,186.8,44.68]
[1760775152628,2.73,186.84,186.8,52.0865]
[1760775152832,1.81583243,186.86,186.8,49.4965]
[1760775154334,1.81583243,186.86,186.8,4.8165]
[1760775154535,2.73,186.85,186.8,4.8165]
[1760775154832,4.54583243,186.84,186.78,4.8172]
[1760775156232,1.81583243,186.82,186.78,4.8172]
[1760775156638,2.73,186.81,186.78,4.8172]
[1760775157944,1.81583243,186.8,186.75,7.4078]
[1760775158240,2.73,186.79,186.75,7.4078]
[1760775158638,1.81583243,186.76,186.73,7.4084]
[1760775159936,1.81583243,186.76,186.73,2.59]
[1760775160144,2.73,186.75,186.71,7.4089]
[1760775164839,2.83805518,186.78,186.69,4.8194]
[1760775165044,2.59,186.76,186.69,4.8194]
[1760775165939,2.83805518,186.75,186.69,4.8194]
[1760775166144,5.42805518,186.75,186.69,4.8194]
[1760775168343,2.59,186.75,186.69,4.8194]
[1760775170342,4.8179,186.76,186.69,4.8194]
[1760775170544,2.59,186.75,186.69,4.8194]
[1760775171749,7.4081,186.75,186.68,2.58]
[1760775172252,2.83805518,186.78,186.68,2.58]
[1760775172253,4.8175,186.77,186.68,2.58]
[1760775172442,2.59,186.8,186.68,2.58]
[1760775172847,2.59,186.8,186.72,4.8186]
[1760775173047,2.59,186.8,186.72,7.3986]
[1760775173748,7.4068,186.8,186.73,4.8184]
[1760775174151,2.83805518,186.84,186.72,2.58]
[1760775174345,7.4061,186.83,186.76,4.8175]
[1760775175354,2.59,186.83,186.77,4.8174]
[1760775176052,7.4061,186.83,186.77,4.8174]
[1760775177055,2.59,186.83,186.75,4.8179]
[1760775177354,2.83805518,186.84,186.75,4.8179]
[1760775177553,2.59,186.83,186.75,4.8179]
[1760775177949,4.8166,186.81,186.75,4.8179]
[1760775178650,7.406,186.83,186.76,4.8176]
[1760775178849,2.59,186.83,186.76,4.8176]
[1760775179050,2.59,186.83,186.75,2.58]
[1760775179451,2.59,186.79,186.72,2.58]
[1760775180559,4.8173,186.78,186.72,7.3987]
[1760775181561,4.8173,186.78,186.5,154.76]
[1760775181562,2.59,186.73,186.63,2.58]
[1760775181947,2.59,186.7,186.63,2.58]
[1760775182955,7.4094,186.7,186.63,2.58]
[1760775183156,2.59,186.74,186.63,2.58]
[1760775183458,2.83805518,186.73,186.63,2.58]
[1760775183853,2.83805518,186.73,186.67,4.8199]
[1760775184757,2.75,186.72,186.55,9.6459]
[1760775184951,5.58805518,186.7,186.57,2.58]
[1760775185152,8.96984544,186.69,186.61,4.8215]
[1760775185353,2.83805518,186.67,186.6,2.58]
[1760775186261,2.83805518,186.7,186.6,2.58]
[1760775186461,8.96343146,186.69,186.6,2.58]
[1760775186662,4.15007162,186.68,186.6,2.58]
[1760775186862,5.58805518,186.7,186.6,2.58]
[1760775187065,8.96342566,186.69,186.61,4.8214]
[1760775187265,5.58805518,186.7,186.62,2.58]
[1760775187462,2.75,186.7,186.62,2.58]
[1760775187858,2.75,186.7,186.63,4.8209]
[1760775188062,7.77840858,186.73,186.62,2.58]
[1760775188267,8.97177167,186.72,186.62,2.58]
[1760775188463,8.97177167,186.71,186.64,2.58]
[1760775188663,2.75,186.74,186.64,2.58]
[1760775188967,8.9736841,186.73,186.64,2.58]
[1760775189168,8.9736841,186.72,186.64,2.58]
[1760775189359,8.9736841,186.71,186.59,2.58]
[1760775189559,8.97556877,186.7,186.59,2.58]
[1760775189867,4.15707117,186.69,186.59,2.58]
[1760775190062,2.75,186.71,186.59,2.58]
[1760775190261,8.97891041,186.7,186.59,2.58]
[1760775190459,4.15887418,186.69,186.62,4.8214]
[1760775190669,2.75,186.71,186.62,4.8214]
[1760775190965,8.98089059,186.7,186.62,4.8214]
[1760775191166,4.15861191,186.69,186.62,4.8214]
[1760775191366,2.75,186.71,186.62,4.8214]
[1760775191570,8.9855405,186.7,186.62,4.8214]
[1760775191765,8.9855405,186.69,186.62,4.8214]
[1760775191967,4.16072709,186.68,186.62,4.8214]
[1760775192166,7.5692,186.71,186.62,4.8214]
[1760775192370,8.98842166,186.7,186.62,4.8214]
[1760775192569,4.16206559,186.69,186.59,2.69]
[1760775192766,6.55715687,186.75,186.59,2.69]
[1760775192767,2.74,186.74,186.59,2.69]
[1760775192967,8.98862263,186.73,186.61,2.69]
[1760775193169,8.98862263,186.72,186.65,4.8204]
[1760775193362,8.98862263,186.71,186.65,4.8204]
[1760775193564,4.16233539,186.7,186.6,44.72]
[1760775193770,2.74,186.74,186.61,2.69]
[1760775193967,8.99424866,186.73,186.61,2.69]
[1760775194167,8.99424866,186.72,186.61,2.69]
[1760775194363,8.99424866,186.71,186.61,2.69]
[1760775194559,4.16688612,186.7,186.61,2.69]
[1760775194759,7.6803534,186.74,186.61,2.69]
[1760775194962,8.99794382,186.73,186.61,2.69]
[1760775195167,8.99794382,186.72,186.61,2.69]
[1760775195367,8.99794382,186.71,186.61,2.69]
[1760775195569,8.99794382,186.7,186.61,2.69]
[1760775195768,7.6803534,186.74,186.61,2.69]
[1760775195969,9.00835814,186.73,186.65,4.8203]
[1760775196167,9.00835814,186.72,186.65,7.5103]